Workbook

Sheet Sheet1
A1: 2025年生产部7月接收处置记录统计表 | R1: 自产废物
A2: 废物名称 | B2: 危废代码 | C2: 形态 | D2: 上月结存 | E2: 本月接收量 | F2: 处置量及工艺 | J2: 库存量 | K2: 1#库 | L2: 2#库 | M2: 干化 | N2: 罐区 | O2: 料坑 | R2: 废物名称 | S2: 上月结存 | T2: 本月产生量 | U2: 包数 | V2: 本月处理 | Y2: 库存 | Z2: 备注 | AA2: 存储位置
F3: 固废焚烧 | G3: 废液焚烧 | H3: 清洗大桶 | I3: 污泥干化 | K3: 1#库 | L3: 2#库 | M3: 干化 | N3: 罐区 | O3: 料坑 | V3: 焚烧处置 | W3: 液体炉 | X3: 拉运
A4: 废盐 | B4: 271-005-02 | C4: 固态 | D4: 24.82 | F4: =2.24+9.58+10 -> 21.82 | J4: =D4+E4-F4-G4-H4-I4 -> 3 | K4: 3 | P4: =K4+L4+M4+N4+O4 -> 3 | R4: 炉渣（回转窑） | S4: 370.593 | T4: =132.415-23.46 -> 108.955 | U4: =107-19 -> 88 | X4: 154.413 | Y4: =S4+T4-V4-X4-W4 -> 325.135
A5: 实验室废液 | B5: 900-002-03 | C5: 液态 | D5: 5.11249 | G5: =5.11249 -> 5.11249 | J5: 0 | P5: 0 | R5: 飞灰（回转窑） | S5: 5.958 | T5: 19.95 | U5: 51 | X5: 11.28 | Y5: 14.628
A6: 一般废药品 | B6: 900-002-03 | C6: 固态 | D6: 0.0054 | E6: =7.52+7.3 -> 14.82 | F6: =0.0054+7.52+7.3 -> 14.8254 | J6: 0 | P6: 0 | R6: 飞灰（废液炉） | S6: 7.28 | T6: 6.51 | U6: 17 | X6: 10.26 | Y6: 3.53
A7: 废农药瓶 | B7: 900-003-04 | C7: 固态 | D7: 0 | E7: =7.76 -> 7.76 | F7: =7.76 -> 7.76 | J7: 0 | P7: 0 | R7: 废油渣/泥 | S7: 0 | Y7: 0 | Z7: 精馏切水后剩下的罐底泥
A8: 废有机溶剂及废物 | B8: 900-402-06 | C8: 液态 | D8: 98.348 | E8: =1.721+0.257+30.94+3.75 -> 36.668 | F8: =0.257 -> 0.257 | G8: =7.093+0.354 -> 7.447 | J8: 127.312 | L8: 127.312 | P8: 127.312 | R8: 含油污水 | S8: 0 | T8: 0.175 | V8: 0.175 | Y8: 0 | Z8: 蒸汽清洗过程 | AA8: 2#库
A9: 清洗剂、渗透剂包装物 | B9: 900-402-06 | C9: 固态 | D9: 0 | J9: 0 | P9: 0 | R9: 废商标 | S9: 0 | T9: 0.065 | V9: 0.065 | Y9: 0 | Z9: 除商标 | AA9: 2#库
A10: 废有机溶剂 | B10: 900-404-06 | C10: 液态 | D10: 9.842 | E10: =0.5+59.54+55.51+26.83 -> 142.38 | F10: =0.5 -> 0.5 | J10: 151.722 | L10: 151.722 | P10: 151.722 | R10: 废残液 | S10: 0 | T10: 0.25 | V10: 0.25 | Y10: 0 | Z10: 抽残液 | AA10: 2#库
A11: 定期更换的活性炭 | B11: 900-405-06 | C11: 固态 | D11: 0 | E11: =0.0849 -> 0.0849 | F11: =0.0849 -> 0.0849 | J11: 0 | P11: 0 | R11: 废渣 | S11: 0 | T11: 0.155 | V11: 0.155 | Y11: 0 | Z11: 清洗过程 | AA11: 2#库
A12: 废有机溶剂 | B12: 900-407-06 | C12: 液态 | D12: 175.048 | E12: =21.89 -> 21.89 | F12: =10.6+5 -> 15.6 | G12: =17 -> 17 | J12: 164.338 | L12: 164.338 | P12: 164.338 | R12: 漆渣 | S12: 0 | Y12: 0 | Z12: 清洗过程
A13: 危废污泥 | B13: 900-409-06 | C13: 固态 | D13: 94.68 | E13: =104.34+30.92+32.64+29.18+27.06 -> 224.14 | F13: =19.64+5+46.5+23.54+15.34+16+16+8.04+38.08+25.88+15.92 -> 229.94 | J13: 88.88 | L13: 88.88 | P13: 88.88 | R13: 污水厂污泥 | S13: 0 | T13: 2.07 | V13: 2.07 | Y13: 0 | Z13: 水处理后产生的污泥 | AA13: 2#库
A14: 油污水 | B14: 251-001-08 | C14: 液态 | D14: 703.19 | E14: =0.1+2 -> 2.1 | F14: =2 -> 2 | G14: =0.5+15.85+16.86 -> 33.21 | J14: 670.08 | N14: 670.08 | P14: 670.08 | R14: 废清洗剂 | S14: 0 | Y14: 0 | Z14: 清洗剂清洗过程
A15: 废溶剂油 | B15: 291-001-08 | C15: 液态 | D15: 1.28452 | G15: =1.28452 -> 1.28452 | J15: 0 | P15: 0
A16: 废溶剂油 | B16: 291-001-08 | C16: 半固态 | D16: 34.28 | J16: 34.28 | K16: 34.28 | P16: 34.28
A17: 研磨泥 | B17: 900-200-08 | C17: 固态 | D17: 0 | E17: =18.147+13.912+10.881 -> 42.94 | F17: =12+13.147+6.912 -> 32.059 | J17: 10.881 | L17: 10.881 | P17: 10.881
A18: HW08废油 | B18: 900-200-08 | C18: 液态 | D18: 95.143 | G18: =1.5+11.1 -> 12.6 | J18: 82.543 | K18: 8.163 | N18: 74.38 | P18: 82.543
A19: 废煤油 | B19: 900-201-08 | C19: 液态 | D19: 1.48 | J19: 1.48 | N19: 1.48 | P19: 1.48
A20: 水处理浮渣及污泥 | B20: 900-210-08 | C20: 半固态 | D20: 283.622 | E20: =4.428+0.062+6.098+2 -> 12.588 | F20: =9.572+8.4+14.51+4.428+0.062+4+5 -> 45.972 | J20: 250.238 | K20: 1.94 | L20: 6.158 | N20: =242.14-30 -> 212.14 | O20: 30 | P20: 250.238
A21: 废机油、含油废水 | B21: 900-210-08 | C21: 液态 | D21: 53.32 | E21: =21.42 -> 21.42 | F21: =3.54 -> 3.54 | J21: 71.2 | K21: 26.64 | L21: 44.56 | P21: 71.2
A22: 废油泥 | B22: 900-210-08 | C22: 固态 | D22: 77.036 | E22: =25.88+7.6065 -> 33.4865 | F22: =6.685+20.26+9.4+9+6.551+7.6065 -> 59.5025 | J22: 51.02 | L22: 51.02 | P22: 51.02
A23: 废矿物油 | B23: 900-214-08 | C23: 液态 | D23: 61.69795 | E23: =1.28+0.6+0.008 -> 1.888 | G23: =9.99+4.02+0.51+7.107+0.9215 -> 22.5485 | J23: 41.03745 | N23: 41.03745 | P23: 41.03745
A24: 废矿物油 | B24: 900-217-08 | C24: 液态 | D24: 43.18755 | E24: =0.12+5.04 -> 5.16 | G24: =0.4 -> 0.4 | J24: 47.94755 | N24: 47.94755 | P24: 47.94755
A25: 废液压油 | B25: 900-218-08 | C25: 液态 | D25: 48.985 | E25: =0.769 -> 0.769 | G25: =9.76+1.39+1.22+1.68 -> 14.05 | J25: 35.704 | N25: 35.704 | P25: 35.704
A26: 废冷冻机油 | B26: 900-219-08 | C26: 液态 | D26: 13.97 | E26: =1.8 -> 1.8 | G26: =1.24 -> 1.24 | J26: 14.53 | N26: 14.53 | P26: 14.53
A27: 废矿物油与含矿物油废物 | B27: 900-220-08 | C27: 液态 | D27: 5.949 | E27: =2.19 -> 2.19 | G27: =3.14+2.19 -> 5.33 | J27: 2.809 | N27: 2.809 | P27: 2.809
A28: 废矿物油 | B28: 900-249-08 | C28: 液态 | D28: 113.36622 | E28: =27.26+0.0171+3.58+22.82+0.9+10.24 -> 64.8171 | F28: =2.67 -> 2.67 | G28: =1.364+0.52+13.5+19.6+16.3+6.52+1.59 -> 59.394 | J28: 116.11932 | L28: 6.42 | N28: 109.69932 | P28: 116.11932
A29: 废矿物油、废油桶 | B29: 900-249-08 | C29: 固态 | D29: 4.24 | E29: =4.764+20.48+8.82+8.12+8.08+8.18 -> 58.444 | F29: =0.26+3.88+16.56+16.72 -> 37.42 | H29: =4.06 -> 4.06 | J29: 21.204 | K29: 20.32 | L29: 0.884 | P29: 21.204
A30: 废水、乳化液 | B30: 900-007-09 | C30: 液态 | D30: 127.2175 | E30: =0.464+1.648 -> 2.112 | F30: =0.6+0.464 -> 1.064 | G30: =1.145+0.507+14.754+22.08+25.1335+33.92+16.98 -> 114.5195 | J30: 13.746 | L30: 13.746 | P30: 13.746
A31: 废乳化液 | B31: 900-006-09 | C31: 液态 | D31: 79.0925 | E31: =0.8+7.5575+13+0.146 -> 21.5035 | F31: =0.2+0.8 -> 1 | G31: =15.94+8.2085+2 -> 26.1485 | J31: 73.4475 | L31: =73.4475-25 -> 48.4475 | O31: 25 | P31: 73.4475
A32: 废水汽提塔排重质烃 | B32: 252-009-11 | C32: 液态 | D32: 36.9 | J32: 36.9 | L32: 36.9 | P32: 36.9
A33: 煤焦油、釜残 | B33: 900-013-11 | C33: 固态 | D33: 2.29 | E33: =12.7804 -> 12.7804 | F33: =8.7889+3.9915 -> 12.7804 | J33: 2.29 | L33: 2.29 | P33: 2.29
A34: 煤焦油 | B34: 900-013-11 | C34: 液态 | D34: 29.2555 | E34: =1.907+7.82 -> 9.727 | F34: =10+9.96 -> 19.96 | J34: 19.0225 | K34: 11.2025 | L34: 7.82 | P34: 19.0225
A35: 釜残 | B35: 900-013-11 | C35: 半固态 | D35: 499.632 | E35: =32.58+30.6+0.307 -> 63.487 | F35: =5+10+6.08+19+19.7+13.24+3+5+8+3+3 -> 95.02 | J35: 468.099 | K35: =468.099-40 -> 428.099 | O35: 40 | P35: 468.099
A36: 煤焦油 | B36: 451-003-11 | C36: 液态 | D36: 293.47 | E36: =50.24+49.18+48.28+49.88 -> 197.58 | F36: =6+11+6+6 -> 29 | J36: 462.05 | L36: =462.05-30 -> 432.05 | O36: 30 | P36: 462.05
A37: 漆渣 | B37: 900-250-12 | C37: 固态 | D37: 0 | E37: =15.317+17.434+16.571 -> 49.322 | F37: =15.317 -> 15.317 | J37: 34.005 | K37: 34.005 | P37: 34.005
A38: 漆渣 | B38: 900-250-12 | C38: 半固态 | D38: 0 | E38: =0.304+0.388 -> 0.692 | F38: =0.304+0.388 -> 0.692 | J38: 0 | P38: 0
A39: 废彩涂液 | B39: 900-252-12 | C39: 液态 | D39: 36.46 | G39: =5+4.8+9+8.66+9 -> 36.46 | J39: 0 | P39: 0
A40: 废漆渣 | B40: 900-252-12 | C40: 固态 | D40: 313.98 | E40: =42.086+32.861+20.38+32.7435+12.88+25.1645+35.0765+13.82+26.1657+13.38+10.53 -> 265.0872 | F40: =4.7+45.18+40.417+32.6135+24.7145+12+42.6955+30.598+32.2165+25.5675+19.76+38.021+38.1417+13.1645 -> 399.7897 | J40: 179.2775 | K40: =179.2775-120 -> 59.2775 | O40: 120 | P40: 179.2775
A41: 漆渣 | B41: 900-252-12 | C41: 半固态 | D41: 0 | E41: =0.5 -> 0.5 | F41: =0.5 -> 0.5 | J41: 0 | P41: 0
A42: 废油墨 | B42: 900-253-12 | C42: 液态 | D42: 0 | E42: =2 -> 2 | F42: =2 -> 2 | J42: 0 | P42: 0
A43: 油墨渣子、油漆 | B43: 900-299-12 | C43: 半固态 | D43: 0.7905 | F43: =0.7905 -> 0.7905 | J43: 0 | P43: 0
A44: 硒鼓墨盒 | B44: 900-299-12 | C44: 固态 | D44: 0 | E44: =0.15+0.03039+2.5 -> 2.68039 | F44: =0.15+0.03039+2.5 -> 2.68039 | J44: 0 | P44: 0
A45: 油漆渣 | B45: 900-299-12 | C45: 液态 | D45: 2.4 | J45: 2.4 | K45: 2.4 | P45: 2.4
A46: 污泥 | B46: 264-012-12 | C46: 固态 | D46: 0.5 | F46: =0.5 -> 0.5 | J46: 0 | P46: 0
A47: 发泡废料，废胶水 | B47: 900-014-13 | C47: 半固态 | D47: 0 | E47: =0.7 -> 0.7 | F47: =0.7 -> 0.7 | J47: 0 | P47: 0
A48: 发泡废料，废胶水 | B48: 900-014-13 | C48: 固态 | D48: 48.98 | E48: =6.72+6.18+14.51+4.44+6.54+3.18+5.16 -> 46.73 | F48: =8.44+45.4+14.51+4.44+15.3 -> 88.09 | J48: 7.62 | K48: 7.62 | P48: 7.62
A49: 废树脂 | B49: 900-015-13 | C49: 固态 | D49: 0 | E49: =1.5 -> 1.5 | F49: =1.5 -> 1.5 | J49: 0 | P49: 0
A50: 有机树脂废物 | B50: 900-016-13 | C50: 半固态 | D50: 5.336 | F50: =5.336 -> 5.336 | J50: 0 | P50: 0
A51: PBL真空废液 | B51: 265-101-13 | C51: 液态 | D51: 17.52 | J51: 17.52 | K51: 17.52 | P51: 17.52
A52: PBL真空废液 | B52: 265-101-13 | C52: 固态 | D52: 0 | E52: =1.42 -> 1.42 | J52: 1.42 | K52: 1.42 | P52: 1.42
A53: 釜残与滤渣 | B53: 265-103-13 | C53: 半固态 | D53: 0 | E53: =9.92 -> 9.92 | F53: =9.92 -> 9.92 | J53: 0 | P53: 0
A54: 镀铜溶液 | B54: 336-062-17 | C54: 液态 | D54: 10.16 | G54: =0.5 -> 0.5 | J54: 9.66 | L54: 9.66 | P54: 9.66
A55: 镀镍废液 | B55: 336-055-17 | C55: 液态 | D55: 3.121 | G55: =3.121 -> 3.121 | J55: 0 | P55: 0
A56: 电镀污泥 | B56: 336-063-17 | C56: 半固态 | D56: 0 | E56: =2.88 -> 2.88 | J56: 2.88 | L56: 2.88 | P56: 2.88
A57: 磷化污泥 | B57: 336-064-17 | C57: 固态 | D57: 6.2165 | E57: =5.5825+18.84 -> 24.4225 | F57: =6.2165 -> 6.2165 | J57: 24.4225 | L57: 24.4225 | P57: 24.4225
A58: 金属表面处理污泥 | B58: 336-064-17 | C58: 液态 | D58: 9.979 | F58: =1.999 -> 1.999 | G58: =5.5 -> 5.5 | J58: 2.48 | L58: 2.48 | P58: 2.48
A59: 污泥 | B59: 336-069-17 | C59: 液态 | D59: 25.58 | J59: 25.58 | L59: 25.58 | P59: 25.58
A60: 废碱液 | B60: 251-015-35 | C60: 液态 | D60: 25.52 | E60: =16.56 -> 16.56 | G60: =12.24+13.28 -> 25.52 | J60: 16.56 | L60: 16.56 | P60: 16.56
A61: 废碱泥 | B61: 251-015-35 | C61: 半固态 | D61: 16.84 | J61: 16.84 | L61: 16.84 | P61: 16.84
A62: 废硫氢化钠残渣 | B62: 900-399-35 | C62: 半固态 | D62: 46.76 | E62: =25.84 -> 25.84 | F62: =18.36+8+20.4+10+15.84 -> 72.6 | J62: 0 | P62: 0
A63: 废碱液 | B63: 900-352-35 | C63: 液态 | D63: 7.38 | F63: =7.38 -> 7.38 | J63: 0 | P63: 0
A64: 含酚废水 | B64: 261-070-39 | C64: 液态 | D64: 198.44 | E64: =33.46 -> 33.46 | J64: 231.9 | N64: 231.9 | P64: 231.9
A65: 污泥 | B65: 261-084-45 | C65: 固态 | D65: 3 | F65: =3 -> 3 | J65: 0 | P65: 0
A66: 含油废物 | B66: 900-041-49 | C66: 固态 | D66: 193.32605 | E66: =24.5235+17.6516+11.1575+1.04+14.69818+20.2807+24.4325+29.96606+4.52235+32.995+25.357+11.0855+6.866+12.776+13.69595+2.881 -> 253.92884 | F66: =58.53515+31.2629+16.3015+35.469+23.2806+4.3+6.07668+8.6562+19.62306+14.4121+30.40525+13.57+20.1095+19.938+8.256 -> 310.19594 | H66: 4.2 | J66: 132.85895 | K66: =128.5205-30 -> 98.5205 | L66: 4.33845 | O66: 30 | P66: 132.85895
A67: 废酸碱袋 | B67: 900-042-49 | C67: 固态 | D67: 0 | E67: =0.75+0.577 -> 1.327 | F67: =0.75+0.577 -> 1.327 | J67: 0 | P67: 0
A68: 废活性炭 | B68: 900-039-49 | C68: 固态 | D68: 2.094 | E68: =9.196+0.11+0.65+9.14+0.53023+0.121+1.331+0.1+0.003 -> 21.18123 | F68: =1.294+0.32+0.13+9.48+0.826+5.71023+0.221+3.76+0.1+0.5735+0.8575 -> 23.27223 | J68: =D68+E68-F68-G68-H68-I68 -> 0.003 | L68: 0.003 | P68: =K68+L68+M68+N68+O68 -> 0.003
A69: 过期化学药品 | B69: 900-047-49 | C69: 固态 | D69: 0.714 | E69: =1.964+0.3325+0.19973+0.12465+0.1966+0.16 -> 2.97748 | F69: =0.02+1.624+1.3665+0.03473+0.165+0.16125+0.16+0.16 -> 3.69148 | J69: 0 | P69: =K69+L69+M69+N69+O69 -> 0
A70: 乙腈、异丙酮、废液 | B70: 900-047-49 | C70: 液态 | D70: 73.2812 | E70: =5.8469+6.5914+3.9838+7.90671+5.541+0.225+8.1877+8.7671+2.805+0.67+4.0127+2.08961+1.095 -> 57.72192 | F70: =1+1.1+8.8494+1.62+5.38671+3.52+6.125+10.2581+1.324+3.018 -> 42.20121 | G70: =11.2639+21.4098+2.9224+3.15895+0.85475+7.6982+0.457 -> 47.765 | J70: 41.03691 | L70: 41.03691 | P70: =K70+L70+M70+N70+O70 -> 41.03691
A71: 过期药品 | B71: 900-999-49 | C71: 固态 | D71: 10.02 | E71: =0.5+0.001+0.284 -> 0.785 | F71: =10.02+0.5+0.001+0.284 -> 10.805 | J71: 0 | P71: =K71+L71+M71+N71+O71 -> 0
A72: 过期面膜原料、残液 | B72: 900-999-49 | C72: 液态 | D72: 20.16 | F72: =0.92 -> 0.92 | G72: =2.76 -> 2.76 | J72: 16.48 | L72: 16.48 | P72: =K72+L72+M72+N72+O72 -> 16.48
A73: 小计： | D73: 4095.02288 | E73: =SUM(E4:E72) -> 1824.17096 | F73: =SUM(F4:F72) -> 1644.19915 | G73: =SUM(G4:G72) -> 441.91051 | H73: =SUM(H4:H72) -> 8.26 | I73: =SUM(I4:I72) -> 0 | J73: 3824.82418 | K73: =SUM(K4:K72) -> 754.4075 | L73: 1353.70936 | M73: 0 | N73: 1441.70732 | O73: 275 | P73: 3824.82418
A74: 合计： | F74: =F73+G73+H73 -> 2094.36966
